Cogmind - Beta 16 @@@ ROGUE MODE // 2026.01.22 @ 18:49:45 Player: OniAn Result: Destroyed by EMP Trap Performance ------------- Evolutions (2) 1000 Regions Visited (7) 1400 Robots Destroyed (63) 315 Value Destroyed (1632) 1632 Prototype IDs (25) 500 Alien Tech Used (0) 0 Bonus (338) 338 TOTAL SCORE: 5185 Bonus ------- Follower Combat Kills 50 Aligned with FarCom 300 Friendly Fire -12 Cogmind --------- Core Integrity 0/550 Matter 285/300 Energy 309/310 System Corruption 0% Temperature Cool (0) Movement Core (400) Ox7 Location -8/Materials Parts ------- > --- POWER (1) -------- Cooled Deuterium Engine > --- PROPULSION (4) --- (None) > --- UTILITY (4) ------ (None) > --- WEAPON (2) ------- Advanced Assault Cannon Advanced Assault Cannon > --- INVENTORY (5) ---- Scrap Suit Advanced Assault Cannon Shock Bomb Launcher Improved Datajack Peak State ------------ > --- POWER ------------ Improved Ion Engine > --- PROPULSION ------- Flight Unit Flight Unit VTOL Module VTOL Module > --- UTILITY ---------- Trap Scanner Improved Light Armor Plating Trap Reconfigurator > --- WEAPON ----------- Minigun Mining Claw > --- INVENTORY -------- Scrap Suit Shock Bomb Launcher Grenade Launcher Missile Launcher [Rating: 28] Favorites ----------- Power Light Angular Momentum Engine Engine Light Angular Momentum Engine Power Core Light Nuclear Core Propulsion Flight Unit Leg Aluminum Leg Wheel Compact Wheel Flight Unit Flight Unit Utility Improved Light Armor Plating Device Improved Heat Sink Storage Small Storage Unit Protection Improved Light Armor Plating Weapon Mining Claw Energy Gun Medium Laser Energy Cannon Ion Cannon Ballistic Gun Minigun Ballistic Cannon Advanced Assault Cannon Launcher Grenade Launcher Slashing Weapon Mining Claw Build | -11 -10 -10 -9 -9 -9 -8 -8 ------- Run | Yrd Mat Min Mat Min Exi Min Mat Slots Evolved 4 | . . . 2 . . . 2 Power . | . . . . . . . . Propulsion 2 | . . . 2 . . . . Utility 2 | . . . . . . . 2 Weapon . | . . . . . . . . Parts Attached 50 | 7 4 9 11 . 1 . 18 Power 8 | 1 . 1 3 . . . 3 Engine 6 | 1 . 1 3 . . . 1 Core 2 | . . . . . . . 2 Reactor . | . . . . . . . . Propulsion 18 | 2 3 3 6 . . . 4 Treads . | . . . . . . . . Leg 2 | . . 1 . . . . 1 Wheel 2 | 2 . . . . . . . Hover . | . . . . . . . . Flight 14 | . 3 2 6 . . . 3 Utility 7 | 1 . 2 1 . 1 . 2 Device 4 | . . 1 1 . 1 . 1 Storage 1 | 1 . . . . . . . Processor . | . . . . . . . . Hackware . | . . . . . . . . Protection 2 | . . 1 . . . . 1 Artifact . | . . . . . . . . Weapon 17 | 3 1 3 1 . . . 9 Energy Gun 3 | 1 1 . . . . . 1 Energy Cannon 1 | . . . . . . . 1 Ballistic Gun 5 | 2 . 1 1 . . . 1 Ballistic Cannon 3 | . . . . . . . 3 Launcher 4 | . . 1 . . . . 3 Special Weapon . | . . . . . . . . Impact Weapon . | . . . . . . . . Slashing Weapon 1 | . . 1 . . . . . Piercing Weapon . | . . . . . . . . Special Melee Weapon . | . . . . . . . . Unidentified Prototypes 2 | . . . 1 . . . 1 Parts Lost 25 | . 3 1 4 . . . 17 Power 6 | . 1 . 2 . . . 3 Propulsion 9 | . 1 1 1 . . . 6 Utility 2 | . . . . . . . 2 Weapon 8 | . 1 . 1 . . . 6 Highest Loss Streak 6 | . 1 1 3 . . . 6 To Critical Strikes . | . . . . . . . . Average Backups 3 | . 1 4 4 5 5 4 3 Power . | . . . . . . . . Propulsion . | . . . . . . . . Utility . | . . . . . . . 1 Weapon 3 | . . 4 4 5 5 3 2 Tool/Special . | . . . . . . . . Unused Backups 7 | . 1 2 . 1 . 1 2 Power . | . . . . . . . . Propulsion . | . . . . . . . . Utility 2 | . 1 . . . . . 1 Weapon 4 | . . 2 . 1 . 1 . Tool/Special 1 | . . . . . . . 1 Average Slot Usage (%) 76 | . 59 85 79 88 95 100 60 Engine 10 | . 14 12 8 11 11 11 4 Flight 20 | . 12 16 27 44 44 44 21 Device 9 | . . 12 10 . 6 11 7 Protection 9 | . . 13 10 11 11 11 5 Energy Gun 1 | . 14 . . . . . . Ballistic Gun 5 | . 3 3 9 11 11 11 7 Ballistic Cannon 1 | . . . . . . . 4 Launcher 5 | . . 10 1 . . . 1 Slashing Weapon 8 | . . 13 11 11 11 11 1 Peak Build Rating 28 | 6 6 17 19 16 25 25 28 Average Rating 15 | 4 4 14 14 16 21 24 21 On Entrance 13 | . 6 3 16 16 16 25 25 Avg Prop Armor Cover (%) 8 | . . . . . . . 8 Naked Turns . | . . . . . . . . Heaviest Build 24 | 10 12 18 18 15 16 16 24 Greatest Support 32 | 32 32 10 16 16 16 16 16 Greatest Overweight (x) 7 | . 1 4 3 . . 1 7 Average Overweight (x) . | . . 2 . . . . 1 Largest Inventory Capacity 8 | 8 8 5 5 5 5 5 5 Average Capacity 5 | 7 6 5 5 5 5 5 5 Most Carried 5 | 1 5 5 5 5 5 5 5 Average Carried 4 | . 1 4 4 5 5 4 4 Final Capacity 8 | 8 5 5 5 5 5 5 5 Final Carried 5 | 1 4 5 5 5 5 5 5 Class Distribution -------------------- 64% | Mutant 12% | Sprinter 12% | Scavenger-Sprinter 10% | Scavenger-Mutant Dominant Class ---------------- Mutant | -10/Materials Mutant | -10/Mines Scavenger-Sprinter | -9/Materials Sprinter | -9/Mines Sprinter | -9/Exiles Sprinter | -8/Mines Mutant | -8/Materials Resources | -11 -10 -10 -9 -9 -9 -8 -8 ----------- Run | Yrd Mat Min Mat Min Exi Min Mat Matter Collected 1570 | 106 117 305 129 . . . 913 Remotely . | . . . . . . . . Salvage Created 1483 | . 158 107 302 . . . 916 Parts 129 | . 17 17 29 . . . 66 Haulers Intercepted . | . . . . . . . . Recyclers Shooed 2 | . 1 . . . . . 1 Parts Field Recycled . | . . . . . . . . Retrieved Matter . | . . . . . . . . Parts Self-Destructed . | . . . . . . . . Prevented . | . . . . . . . . Parts Restored . | . . . . . . . . Kills | -11 -10 -10 -9 -9 -9 -8 -8 ------- Run | Yrd Mat Min Mat Min Exi Min Mat Combat Hostiles Destroyed 46 | . 5 8 7 . . . 26 Melee 3 | . . . 3 . . . . Guns 22 | . 5 1 3 . . . 13 Cannons 6 | . . . . . . . 6 AOE 15 | . . 7 1 . . . 7 Classes Destroyed 11 | . 3 2 1 . . . 5 Worker 4 | . . . . . . . 4 Builder 5 | . . . . . . . 5 Tunneler 1 | . . 1 . . . . . Recycler 2 | . . . . . . . 2 Watcher 5 | . 2 . 1 . . . 2 Swarmer 19 | . 3 4 2 . . . 10 Grunt 21 | . 2 3 2 . . . 14 Brawler 1 | . . . . . . . 1 Duelist 1 | . . . . . . . 1 Sentry 3 | . . . 3 . . . . Demolisher 1 | . . 1 . . . . . Best Kill Streak 7 | . 3 3 2 . . . 7 Combat Bots Only 7 | . 3 3 2 . . . 7 Max Kills in Single Turn 3 | . 1 3 1 . . . 3 Gunslinging . | . . . . . . . . Exploded 3 | . . 3 1 . . . 3 Melee 1 | . . . 1 . . . . Uniques/NPCs Destroyed . | . . . . . . . . Combat | -11 -10 -10 -9 -9 -9 -8 -8 -------- Run | Yrd Mat Min Mat Min Exi Min Mat Hostile Shots Fired 321 | . 41 38 37 . . . 205 Missed 114 | . 13 12 16 . . . 73 Hits 207 | . 28 26 21 . . . 132 Projectile 207 | . 28 26 21 . . . 132 AOE 1 | . . 1 . . . . . Critical Strikes 6 | . . . 1 . . . 5 Damage Taken 2761 | . 261 430 281 . . . 1789 Core 830 | . 54 129 87 . . . 560 Absorbed by Shields . | . . . . . . . . Regen/Repaired (Parts) 67 | . 67 . . . . . . Core Remaining (%) 68 | 100 . 26 . . . 78 . Volleys Fired 178 | . 29 15 25 . . . 109 Largest 2 | . 2 1 1 . . . 2 Hottest 96 | . 90 30 30 . . . 96 Shots Fired 228 | . 33 15 25 . . . 155 Gun 144 | . 33 6 24 . . . 81 Cannon 58 | . . . . . . . 58 Launcher 26 | . . 9 1 . . . 16 Special . | . . . . . . . . Kinetic 149 | . . 6 24 . . . 119 Thermal 49 | . 29 . . . . . 20 Explosive 23 | . . 9 1 . . . 13 Electromagnetic 7 | . 4 . . . . . 3 Robot Hit Streak 6 | . 5 6 3 . . . 5 Robot Miss Streak 6 | . 5 4 4 . . . 6 Penetration Max . | . . . . . . . . Secondary Targets 3 | . 1 . . . . . 2 Max Gunslinging Chain 1 | . 1 . . . . . 1 Shots Hit Robots 126 | . 19 13 17 . . . 77 Core Hits 102 | . 11 20 11 . . . 60 Critical Kills . | . . . . . . . . Critical Parts Destroyed . | . . . . . . . . Critical Strikes 2 | . 2 . . . . . . Burn 2 | . 2 . . . . . . Melee Attacks 18 | . . 6 9 . . . 3 Impact . | . . . . . . . . Slashing 18 | . . 6 9 . . . 3 Piercing . | . . . . . . . . Sneak Attacks 2 | . . 2 . . . . . Combat Hostiles . | . . . . . . . . Follow-up Attacks . | . . . . . . . . Damage Inflicted 4398 | . 252 646 388 . . . 3112 Guns 1208 | . 252 120 203 . . . 633 Cannons 919 | . . . . . . . 919 Explosions 2056 | . . 430 66 . . . 1560 Melee 215 | . . 96 119 . . . . Ramming . | . . . . . . . . Kinetic 1605 | . . 120 203 . . . 1282 Thermal 597 | . 228 . . . . . 369 Explosive 1737 | . . 430 66 . . . 1241 Electromagnetic 244 | . 24 . . . . . 220 Impact . | . . . . . . . . Slashing 215 | . . 96 119 . . . . Piercing . | . . . . . . . . Highest Corruption . | . . . . . . . . Average Corruption . | . . . . . . . . Corruption Purged . | . . . . . . . . Corruption Blocked . | . . . . . . . . Overload Shots . | . . . . . . . . Overflow Damage 115 | . . 6 . . . . 109 Projectiles 42 | . . . . . . . 42 Explosions 67 | . . . . . . . 67 Melee 6 | . . 6 . . . . . Knockbacks 3 | . . . . . . . 3 Impact . | . . . . . . . . Kinetic 3 | . . . . . . . 3 Secondary . | . . . . . . . . Self-Inflicted Damage 102 | . . 32 37 . . . 33 Shots 5 | . . 2 1 . . . 2 Rammed . | . . . . . . . . Targets Rammed . | . . . . . . . . Kicked . | . . . . . . . . Crushed . | . . . . . . . . Highest Temperature 242 | . 242 5 6 . . . 209 Average Temperature 58 | . 89 5 2 . . . 47 Received Heat Transfer 1152 | . 63 177 93 . . . 819 Siege Activations . | . . . . . . . . Martial Activations . | . . . . . . . . Shielding Activations . | . . . . . . . . Robots Disrupted . | . . . . . . . . Combat Hostiles . | . . . . . . . . Robots Corrupted . | . . . . . . . . Combat Hostiles . | . . . . . . . . Parts Fried . | . . . . . . . . Impact Corruptions . | . . . . . . . . Robots Melted . | . . . . . . . . Combat Hostiles . | . . . . . . . . Parts Melted 2 | . 2 . . . . . . Heat Transferred 1358 | . 814 . . . . . 544 Parts Sabotaged . | . . . . . . . . Parts Stolen . | . . . . . . . . Parts Stripped . | . . . . . . . . Power Chain Reactions 2 | . . . 1 . . . 1 Alert | -11 -10 -10 -9 -9 -9 -8 -8 ------- Run | Yrd Mat Min Mat Min Exi Min Mat Maximum Alert Level 1 | . . . . . . . 1 Low Security (%) 82 | 100 100 100 100 100 . 100 27 Level 1 17 | . . . . . . . 72 Level 2 . | . . . . . . . . Level 3 . | . . . . . . . . Level 4 . | . . . . . . . . Level 5 . | . . . . . . . . High Security . | . . . . . . . . Max Security . | . . . . . . . . Peak Influence 376 | . 75 153 119 30 . . 376 Initial 52 | . . . 52 30 . . . Average 80 | . 19 32 60 5 . . 234 Influence Increases 1647 | . 149 307 307 . . . 884 Destroy 0b10 Robot/C 960 | . 100 200 140 . . . 520 Destroy 0b10 Robot/NC 85 | . 10 5 5 . . . 65 Destroy Leader 200 | . 24 30 62 . . . 84 Allied During Kill 11 | . . 11 . . . . . Successful Hack 3 | . . . 1 . . . 2 Disable Machine 135 | . . 15 30 . . . 90 Destroy Structure 178 | . . 46 9 . . . 123 Partial Spotted 15 | . . . 15 . . . . Lose Combat Pursuer 60 | . 15 . 45 . . . . Influence Decreases 1322 | . 149 172 363 79 . . 559 Entered New Map 132 | . . . 83 49 . . . Time Decay 970 | . 129 172 240 30 . . 399 Lost Part 220 | . 20 . 40 . . . 160 Squads Dispatched 8 | . 2 1 2 . . . 3 Investigation 2 | . 1 1 . . . . . Extermination . | . . . . . . . . Reinforcement 6 | . 1 . 2 . . . 3 Assault . | . . . . . . . . Garrison . | . . . . . . . . Intercept . | . . . . . . . . Searches Triggered . | . . . . . . . . Construction Impeded 2 | . . . . . . . 2 Haulers Reinforced . | . . . . . . . . Active Scanning Responses . | . . . . . . . . Cargo Convoy Interrupts . | . . . . . . . . Stealth | -11 -10 -10 -9 -9 -9 -8 -8 --------- Run | Yrd Mat Min Mat Min Exi Min Mat Distress Signals 5 | . . . 2 . . . 3 Communications Jammed . | . . . . . . . . Distress Signals . | . . . . . . . . Times Spotted 93 | . 14 23 18 . . . 38 Peak Tracking Total 20 | . 5 20 4 . . . 7 Tactical Retreats 3 | . 1 . 2 . . . . Traps | -11 -10 -10 -9 -9 -9 -8 -8 ------- Run | Yrd Mat Min Mat Min Exi Min Mat Traps Triggered 6 | . . 1 4 . . . 1 Indirectly . | . . . . . . . . Trap Hack Attempts . | . . . . . . . . Triggered . | . . . . . . . . Disarmed . | . . . . . . . . Reprogrammed . | . . . . . . . . Reused . | . . . . . . . . Traps Reconfigurated 2 | . . . . . . . 2 Traps Extracted . | . . . . . . . . Installed . | . . . . . . . . Triggered . | . . . . . . . . Most Traps Carried 2 | . . 2 . . . . . Machines | -11 -10 -10 -9 -9 -9 -8 -8 ---------- Run | Yrd Mat Min Mat Min Exi Min Mat Machines Disabled 9 | . . 1 2 . . . 6 Max in Single Turn 2 | . . 1 1 . . . 2 Machines Repaired . | . . . . . . . . Machines Dismantled . | . . . . . . . . Machines Sabotaged . | . . . . . . . . Overloaded Fab Kills . | . . . . . . . . Hacking | -11 -10 -10 -9 -9 -9 -8 -8 --------- Run | Yrd Mat Min Mat Min Exi Min Mat Machines Accessed 8 | . 2 2 2 . 1 . 1 Terminals 2 | . 1 . 1 . . . . Fabricators . | . . . . . . . . Repair Stations 1 | . 1 . . . . . . Recycling Units . | . . . . . . . . Scanalyzers 2 | . . . 1 . . . 1 Garrison Access . | . . . . . . . . Total Hacks 21 | . 5 2 9 . 1 . 4 Successful 13 | . 2 2 4 . 1 . 4 Failed 8 | . 3 . 5 . . . . Catastrophic 1 | . 1 . . . . . . Database Lockouts . | . . . . . . . . Manual 1 | . . . . . 1 . . Terminals 5 | . 2 . 3 . . . . Fabricators . | . . . . . . . . Repair Stations 3 | . 3 . . . . . . Recycling Units . | . . . . . . . . Scanalyzers 10 | . . . 6 . . . 4 Garrison Access . | . . . . . . . . Terminal Hacks 3 | . . 2 . . 1 . . Open Door 2 | . . 2 . . . . . Proto ID Catalog 1 | . . . . . 1 . . Fabricator Hacks . | . . . . . . . . Repair Station Hacks 2 | . 2 . . . . . . Scan Component 1 | . 1 . . . . . . Repair 1 | . 1 . . . . . . Recycling Unit Hacks . | . . . . . . . . Scanalyzer 8 | . . . 4 . . . 4 Insert Component 4 | . . . 2 . . . 2 Analyze 4 | . . . 2 . . . 2 Garrison Access Hacks . | . . . . . . . . Unauthorized Hacks . | . . . . . . . . Terminals . | . . . . . . . . Fabricators . | . . . . . . . . Repair Stations . | . . . . . . . . Recycling Units . | . . . . . . . . Scanalyzers . | . . . . . . . . Garrison Access . | . . . . . . . . Data Cores Recovered . | . . . . . . . . Used . | . . . . . . . . Hacking Detections 5 | . 2 . 2 . . . 1 Full Trace Events 2 | . 2 . . . . . . Feedback Events . | . . . . . . . . Feedback Blocked . | . . . . . . . . Robot Schematics Acquired . | . . . . . . . . Robots Built . | . . . . . . . . Authchips . | . . . . . . . . Time . | . . . . . . . . Total Robot Build Rating . | . . . . . . . . Part Schematics Acquired 4 | . . . 2 . . . 2 Parts Built . | . . . . . . . . Authchips . | . . . . . . . . Time . | . . . . . . . . Total Part Build Rating . | . . . . . . . . Part Studies Acquired . | . . . . . . . . Parts Repaired 1 | . 1 . . . . . . Time 26 | . 26 . . . . . . Parts Recycled . | . . . . . . . . Recycled Matter . | . . . . . . . . Retrieved Matter . | . . . . . . . . Retrieved Components . | . . . . . . . . Parts Scanalyzed 4 | . . . 2 . . . 2 Part Schematics Acquired 4 | . . . 2 . . . 2 Parts Damaged . | . . . . . . . . Bothacking | -11 -10 -10 -9 -9 -9 -8 -8 ------------ Run | Yrd Mat Min Mat Min Exi Min Mat Used RIF Installer . | . . . . . . . . Robots Hacked . | . . . . . . . . Non-combat . | . . . . . . . . Combat . | . . . . . . . . Robot Hacks Applied . | . . . . . . . . Relay Couplers Released . | . . . . . . . . Fabnet Peak Effective % . | . . . . . . . . Robots Rewired . | . . . . . . . . Allies Hacked . | . . . . . . . . Hacks Repelled . | . . . . . . . . Allies | -11 -10 -10 -9 -9 -9 -8 -8 -------- Run | Yrd Mat Min Mat Min Exi Min Mat Total Allies 3 | . . 3 . . . . . Largest Group 3 | . . 3 . . . . . Highest-Rated Group 40 | . . 40 . . . . . Highest-Rated Ally 16 | . . 16 . . . . . Total Orders . | . . . . . . . . Ally Attacks 25 | . . 25 . . . . . Total Damage 203 | . . 203 . . . . . Kills 3 | . . 3 . . . . . Allies Corrupted . | . . . . . . . . Allies Melted . | . . . . . . . . Intel | -11 -10 -10 -9 -9 -9 -8 -8 ------- Run | Yrd Mat Min Mat Min Exi Min Mat Active Infowar (turns) 6 | . . . . . . . 6 Traps 6 | . . . . . . . 6 Robot Analysis Total . | . . . . . . . . Derelict Logs Recovered 2 | . . 1 . 1 . . . Drone Launches . | . . . . . . . . Drone Recoveries . | . . . . . . . . Exploration | -11 -10 -10 -9 -9 -9 -8 -8 ------------- Run | Yrd Mat Min Mat Min Exi Min Mat Turns Passed 5146 | 68 514 2357 542 232 141 81 1211 Spaces Moved 3885 | 59 498 1020 706 459 456 147 540 Core 70 | 3 . . 5 . . . 62 Treads . | . . . . . . . . Legs 114 | . . 71 . . . . 43 Wheels 192 | 56 136 . . . . . . Hover . | . . . . . . . . Flight 3509 | . 362 949 701 459 456 147 435 Fastest Speed 28 | 50 37 37 28 28 28 28 28 Average Speed 99 | 97 77 208 60 28 28 28 103 Slowest Speed 400 | 100 120 360 200 28 28 112 400 Overloaded Moves . | . . . . . . . . Propulsion Burnouts . | . . . . . . . . Robots Hopped 18 | . 8 . 4 4 . 2 . Potential Cave-ins . | . . . . . . . . Cave-ins Triggered . | . . . . . . . . Exploration Rate (%) 53 | 4 59 99 46 83 75 21 37 Regions Visited 7 Branch Regions 4 Pre-discovered Areas . | . . . . . . . . Known Exits Taken . | . . . . . . . . Unknown Exits Taken 7 | 1 1 1 1 1 1 1 . Scrap Searched 1 | . . 1 . . . . . Spaces Dug . | . . . . . . . . Terrain Destroyed 220 | . . 66 7 . . . 147 Melee . | . . . . . . . . Projectile 14 | . . . . . . . 14 AOE 206 | . . 66 7 . . . 133 Terrain Rammed . | . . . . . . . . Walls Destroyed . | . . . . . . . . Machines Disabled . | . . . . . . . . Actions | -11 -10 -10 -9 -9 -9 -8 -8 --------- Run | Yrd Mat Min Mat Min Exi Min Mat Total 4901 | 66 588 1223 769 558 468 184 1045 Wait 719 | . 43 161 7 102 10 35 361 Move 3842 | 58 481 1019 697 450 455 142 540 Hop 18 | . 8 . 4 4 . 2 . Pick Up 18 | . 8 6 1 1 . 1 1 Fast Attach 45 | 7 2 7 14 . 2 1 12 Attach 12 | . 5 1 2 . . . 4 Detach 10 | 1 6 . 1 . . . 2 Swap 11 | . . 1 3 . . . 7 Drop 30 | . 6 7 6 1 1 3 6 Fire 178 | . 29 15 25 . . . 109 Melee 18 | . . 6 9 . . . 3 Ram . | . . . . . . . . Kick . | . . . . . . . . Crush . | . . . . . . . . Escape Stasis . | . . . . . . . . Rewire . | . . . . . . . . Trap . | . . . . . . . . Miscellaneous . | . . . . . . . . Route ------- -11/Scrapyard -10/Materials (discovered 2 exits: *Mat / *Min) -10/Mines (discovered 3 exits: *Mat x2 / [*Sub]) -9/Materials (discovered 2 exits: *Mat / [*Min]) -9/Mines (discovered 2 exits: *Mat / *Exi) -9/Exiles -8/Mines -8/Materials (discovered 2 exits: *Fac / Sto) History --------- Turn | Location | Event 49 | -11/Scrapyard | Discovered new exit (range 14) 69 | -11/Scrapyard | Entered Materials 315 | -10/Materials | Build established: Mutant 322 | -10/Materials | Discovered new exit (range 16) 507 | -10/Materials | Discovered new exit (range 13) 540 | -10/Materials | Repaired Med. Laser 583 | -10/Materials | Entered Mines 584 | -10/Mines | Met a Derelict bent on vengeance 595 | -10/Mines | Found a hidden stash of uninstalled traps 625 | -10/Mines | A weapon hastily lodged in a ceiling crevice suddenly fell to the ground 637 | -10/Mines | Assisted by bots powering up and referring to "LRC-V3" 664 | -10/Mines | Met a Derelict shopkeep closing up shop 701 | -10/Mines | Discovered new exit (range 10) 713 | -10/Mines | Learned Materials emergency access door positions 741 | -10/Mines | Core integrity fell below 50% 1128 | -10/Mines | Assembled infested the area 1133 | -10/Mines | Assisted by a Guerilla fighting off Assembled 1195 | -10/Mines | Lost 6 allies 1750 | -10/Mines | Discovered new exit (range 5) 2850 | -10/Mines | Build established: Scavenger-Mutant 2915 | -10/Mines | Discovered new exit (range 7) 2940 | -10/Mines | Entered Materials 2940 | -9/Materials | Evolved 2 slots: Propulsion x2 3043 | -9/Materials | Lost 3 parts (1p1n1w) 3333 | -9/Materials | Discovered new exit (range 15) 3417 | -9/Materials | Discovered new exit (range 4) 3482 | -9/Materials | Entered Mines 3492 | -9/Mines | Learned 8 Materials zone layouts 3493 | -9/Mines | Discovered new exit (range 13) 3635 | -9/Mines | YI-UF0 nonchalantly dropped a Grenade Launcher on the ground 3712 | -9/Mines | Deemed a non-threat by the Exiles lab entrance 3713 | -9/Mines | Discovered new exit (range 5) 3714 | -9/Mines | Entered Exiles 3725 | -9/Exiles | Met 8R-AWN 3730 | -9/Exiles | Met EX-HEX 3742 | -9/Exiles | Met EX-BIN 3748 | -9/Exiles | Aligned with FarCom system 3748 | -9/Exiles | Given EX-Vault access code 3757 | -9/Exiles | Opened EX-Vault 3761 | -9/Exiles | Found Trap Reconfigurator 3769 | -9/Exiles | Warned to stay clear of 0b10 Research branches 3771 | -9/Exiles | Exiles lab attacked by MAIN.C 3782 | -9/Exiles | Build established: Sprinter 3840 | -9/Exiles | Discovered new exit (range 14) 3855 | -9/Exiles | Left Exiles lab with Trap Reconfigurator 3855 | -9/Exiles | Entered Mines 3861 | -8/Mines | Found a Scrap Suit stashed away for nefarious purposes 3866 | -8/Mines | Found Scrap Suit 3878 | -8/Mines | Discovered new exit (range 3) 3936 | -8/Mines | Entered Materials 3936 | -8/Materials | Evolved 2 slots: Utility x2 3937 | -8/Materials | Identified exit to Storage 3937 | -8/Materials | Identified exit to Factory 4180 | -8/Materials | Destroyed 7 combat bots 4431 | -8/Materials | Build established: Scavenger-Sprinter 4563 | -8/Materials | Lost 5 parts (1p2n2w) 4644 | -8/Materials | Lost 3 parts (1u2w) 4783 | -8/Materials | Core integrity fell below 50% 4856 | -8/Materials | Core integrity fell below 20% 4873 | -8/Materials | Lost 6 parts (2p3n1w) 4923 | -8/Materials | Build established: Mutant 5147 | -8/Materials | Destroyed by EMP Trap Last Messages --------------- 04967_ Acquired 92 matter. 04968_ K-01 Serf collects debris. 04972_ U-05 Engineer builds a Wall. 04979_ Acquired 25 matter. 04984_ K-01 Serf collects debris. 05082_ Destroyed Seismic Detector. 05088_ K-01 Serf knocked back. 05088_ Destroyed Lgt. Ion Engine. 05088_ K-01 Serf destroyed. 05095_ Extracted 100 matter. 05101_ K-01 Serf collects debris. 05112_ U-05 Engineer builds a Wall. 05115_ Acquired 1 matter. 05116_ R-06 Scavenger collects Med. Matter Pod. 05117_ K-01 Serf collects debris. 05129_ U-05 Engineer lays Concrete. 05131_ K-01 Serf collects debris. 05133_ U-05 Engineer builds a Wall. 05147_ Triggered EMP Trap. 05147_ A bubble of electromagnetic force engulfs the area. Map ----- +----------------------------------------------------+ | ??????????????????????????????###=##?# + """ | | ???????????????????????????####"#+"### # """ | | ???????????????????????????# ## # """ | | ???????????????????????????# % ## ######+ | | ???????????????????????????# % %%# % ##### | | ???????????????????????????# % #% | | ???????????????????????????# %+% % | | ???????????????????????????#% %%#% % % % | | ???????????????????????????# # #### | | ???????????????????????????# ## ###?# | | ???????????????????????????# ## #???# | | ???????????????????????????########### #???# | | ?????????????????????????????????????# #???# | | ?????????????????????????????????????# #???# | | ?????????????????????????????????????# #???# | | ????????????????????????#######?????## ###? | | ????????????????????????# ####### "## | | ????????????????????????# #?# | | ????????????????????????# % #?# | | ????????????????????????# "## | | ????????????????????????# ####### #?## | | ?????????????????######### ##?????#######??# | | ?????????????????# # #???????????????# | | ?????????????????# """ # # #?????????????? | | ?????????????????# """ + #???????????????? | | ???????########### """@ # # #???????????????? | | ???????# + # ###???????????????? | | ???????# ################# #?????????????????? | | ???????# #?????????????####+##?????????????????? | | ???????# #?????????????# ??????????????????????? | | ???????# #?????????????# ??????????????????????? | | ???????# #?????????????# ??????????????????????? | | ???????# #?????????????#"??????????????????????? | | ######## #?????????????#"??????????????????????? | | # # #?????????????#"??????????????????????? | | # # #?????????????#"??????????????????????? | | # # #?????????????#"??????????????????????? | | # # #?????????????# ??????????????????????? | | ?????????????????????????######## # #?? | | ??????????????????????????# #???####### #?? | | ??????????????????????????# #?????????# #?? | | ??????????????????????????###########?########?? | | ??????????????????????????# """ #??????????? | | ??????????????????????????# "T" """ #??????????? | | ??????????????????????????# """ #???######## | | ??????????????????????????# """ ##### | | ??????????????????????????# + | | ??????????????????????????# ##### | | ??????????????????????????# #???# #### | | ??????????????????????????# #???# #??? | +----------------------------------------------------+ Best States ------------- Heat Dissipation 50 Energy Generation 18 Energy Capacity 310 Matter Stores 300 Matter Capacity 300 Sight Range 16 Terrain Scan Density 10 Armor Coverage 300 Evasion (%) 64 Item Schematics ----------------- Missile Launcher | -9/Materials | Scanalyzed Shock Rifle | -9/Materials | Scanalyzed Shock Bomb Launcher | -8/Materials | Scanalyzed Grenade Launcher | -8/Materials | Scanalyzed Robot Schematics ------------------ None Fabricated ------------ Nothing Repaired ---------- Med. Laser | 4% | -10/Materials Studied --------- None Alien Tech Used ----------------- None Achievements -------------- None Challenges ------------ None Game ------ Seed GuidedRagnarokSlayer Manual? 0 Play Time 00:39:50 Cumulative 45.5 hours Start 2026.01.18 @ 05:05:42 End 2026.01.22 @ 18:49:45 Sessions 4 Manual Loads 0 Difficulty Rogue Special Mode None Game No. 57 Rogue 33 Adventurer 24 Explorer 0 Win Type - Total 0 Types 0/0/0/0/0/0/0/0/0/0 Lore% 32 Gallery% 29 Achievement% 22 Wizard Run 0 Options --------- Layout 0 ASCII 0 Keyboard 1 Movement Arrows Keybinds 0 Fullscreen 1 Font 18/SmallcapsGlow Map View 76x50 Zoom Use 0% Tactical HUD 1 Map Filters NONE Filters NONE Steam 1 RUN: f434f84f-6773-4a86-9705-013f66ba4239